[Event "71st RUS-ch Higher League 2018"]
[Site "Yaroslavl"]
[Date "2018.07.04"]
[Round "8"]
[White "Triapishko, Alexandr"]
[Black "Vavulin, Maksim"]
[Result "1-0"]
[ECO "C84"]
[WhiteElo "2513"]
[BlackElo "2552"]
[Annotator "ChessBase"]
[PlyCount "77"]
[EventDate "2018.06.26"]
[EventType "swiss"]
[EventCountry "RUS"]
[SourceTitle "playchess.com"]
[Source "ChessBase"]
[SourceQuality "1"]
[TimeControl "40/5400+30:1800+30"]

1. e4 {[%emt 0:00:00]} e5 {[%emt 0:00:00]} 2. Nf3 {[%emt 0:00:08]} Nc6 {[%emt 0:00:00]} 3. Bb5 {[%emt 0:01:51]} a6 {[%emt 0:00:04]} 4. Ba4 {[%emt 0:00:08]} Nf6 {[%emt 0:00:53]} 5. O-O {[%emt 0:00:23]} Be7 {[%emt 0:00:27]} 6. d3 {[%emt 0:00:27]} d6 {[%emt 0:01:38]} 7. c3 {[%emt 0:02:10]} O-O {[%emt 0:00:09]} 8. Nbd2 {[%emt 0:00:55]} Nd7 {[%emt 0:01:41]} 9. Re1 {[%emt 0:18:41]} Nb6 {[%emt 0:05:41]} 10. Bb3 {[%emt 0:07:42]} Kh8 {[%emt 0:00:39]} 11. d4 {[%emt 0:01:43]} exd4 {[%emt 0:07:46]} 12. Nxd4 {[%emt 0:05:10]} a5 {[%emt 0:14:25]} 13. N2f3 {[%emt 0:07:49]} a4 {[%emt 0:01:25]} 14. Bc2 {[%emt 0:00:26]} Bg4 {[%emt 0:03:08]} 15. Nxc6 {[%emt 0:12:34]} bxc6 {[%emt 0:00:02]} 16. Qd3 {[%emt 0:00:09]} Bh5 {[%emt 0:03:48]} 17. Nd4 {[%emt 0:01:12]} Qd7 {[%emt 0:00:45]} 18. Nf5 {[%emt 0:04:09]} Bd8 {[%emt 0:01:35]} 19. Bf4 {[%emt 0:09:00]} Bg6 {[%emt 0:02:03]} 20. Rad1 {[%emt 0:02:17]} Re8 {[%emt 0:02:30]} 21. g4 {[%emt 0:00:56]} Qe6 {[%emt 0:06:18]} 22. h4 {[%emt 0:07:20]} h5 {[%emt 0:07:33]} 23. g5 {[%emt 0:07:47]} Qxa2 {[%emt 0:00:55]} 24. Bc1 {[%emt 0:00:55]} Nd7 {[%emt 0:12:24]} 25. f4 {[%emt 0:02:20]} Nc5 {[%emt 0:01:04]} 26. Qd4 {[%emt 0:00:36]} f6 {[%emt 0:05:52]} 27. Qf2 {[%emt 0:04:13]} a3 {[%emt 0:08:15]} 28. bxa3 {[%emt 0:00:26]} Qc4 {[%emt 0:00:03]} 29. Ne3 {[%emt 0:01:14]} Qxc3 {[%emt 0:01:50]} 30. f5 {[%emt 0:00:04]} Bf7 {[%emt 0:02:25]} 31. g6 {[%emt 0:00:25]} Bb3 {[%emt 0:00:04]} 32. Bd2 {[%emt 0:01:15]} Qb2 {[%emt 0:05:56]} 33. Rb1 {[%emt 0:00:22]} Qxa3 {[%emt 0:00:30]} 34. Qf3 {[%emt 0:01:13]} Ba2 {[%emt 0:01:57]} 35. Bb4 {[%emt 0:00:49]} Qa7 {[%emt 0:01:18]} 36. Ra1 {[%emt 0:00:22]} Kg8 {[%emt 0:01:13]} 37. Qxh5 {[%emt 0:00:08]} Qb6 {[%emt 0:00:49]} 38. Qh7+ {[%emt 0:00:29]} Kf8 {[%emt 0:00:01]} 39. Rxa2 {[%emt 0:00:14]} 1-0

[Event "71st RUS-ch Higher League 2018"]
[Site "Yaroslavl"]
[Date "2018.07.04"]
[Round "8"]
[White "Goryachkina, Aleksandra"]
[Black "Paravyan, David"]
[Result "1-0"]
[ECO "A86"]
[WhiteElo "2505"]
[BlackElo "2634"]
[Annotator "ChessBase"]
[PlyCount "197"]
[EventDate "2018.06.26"]
[EventType "swiss"]
[EventCountry "RUS"]
[SourceTitle "playchess.com"]
[Source "ChessBase"]
[SourceQuality "1"]
[TimeControl "40/5400+30:1800+30"]

1. d4 {[%emt 0:00:00]} f5 {[%emt 0:01:20]} 2. c4 {[%emt 0:00:00]} Nf6 {[%emt 0:00:06]} 3. g3 {[%emt 0:00:00]} g6 {[%emt 0:00:05]} 4. Nf3 {[%emt 0:00:13]} Bg7 {[%emt 0:00:05]} 5. b4 {[%emt 0:00:11]} b6 {[%emt 0:07:49]} 6. Bb2 {[%emt 0:01:57]} Bb7 {[%emt 0:03:40]} 7. Bg2 {[%emt 0:00:56]} e6 {[%emt 0:00:09]} 8. O-O {[%emt 0:05:25]} Qe7 {[%emt 0:00:57]} 9. a3 {[%emt 0:02:37]} O-O {[%emt 0:00:38]} 10. Nc3 {[%emt 0:05:00]} Ne4 {[%emt 0:02:03]} 11. Qb3 {[%emt 0:06:58]} d6 {[%emt 0:14:27]} 12. Nxe4 {[%emt 0:06:25]} Bxe4 {[%emt 0:00:17]} 13. Nd2 {[%emt 0:02:06]} Bxg2 {[%emt 0:00:12]} 14. Kxg2 {[%emt 0:00:02]} Nd7 {[%emt 0:01:39]} 15. e3 {[%emt 0:07:18]} a5 {[%emt 0:06:54]} 16. Rfd1 {[%emt 0:06:31]} g5 {[%emt 0:08:31]} 17. d5 {[%emt 0:05:45]} Bxb2 {[%emt 0:12:32]} 18. Qxb2 {[%emt 0:00:02]} e5 {[%emt 0:00:15]} 19. f3 {[%emt 0:08:07]} h5 {[%emt 0:01:47]} 20. Qc2 {[%emt 0:03:17]} Qg7 {[%emt 0:02:47]} 21. b5 {[%emt 0:04:08]} f4 {[%emt 0:09:51]} 22. Rf1 {[%emt 0:01:53]} g4 23. Rae1 h4 {[%emt 0:11:06]} 24. gxf4 {[%emt 0:12:03]} g3 {[%emt 0:03:48]} 25. h3 {[%emt 0:03:39]} exf4 {[%emt 0:00:22]} 26. e4 {[%emt 0:04:03]} a4 {[%emt 0:02:33]} 27. Re2 {[%emt 0:00:30]} Rf7 {[%emt 0:03:27]} 28. Rd1 {[%emt 0:02:03]} Ne5 {[%emt 0:00:08]} 29. Qc3 {[%emt 0:00:45]} Qg5 {[%emt 0:02:37]} 30. Rf1 {[%emt 0:01:45]} Re7 {[%emt 0:01:26]} 31. Rd1 {[%emt 0:00:31]} Qf6 {[%emt 0:00:52]} 32. Rc1 {[%emt 0:01:35]} Rf8 {[%emt 0:00:42]} 33. Nb1 {[%emt 0:01:59]} Qg6 {[%emt 0:01:13]} 34. Nd2 {[%emt 0:00:40]} Nf7 {[%emt 0:00:07]} 35. Rh1 {[%emt 0:01:19]} Nh6 {[%emt 0:00:09]} 36. Rhe1 {[%emt 0:02:13]} Rfe8 {[%emt 0:01:18]} 37. Qd3 {[%emt 0:01:25]} Re5 {[%emt 0:00:20]} 38. Nb1 {[%emt 0:00:33]} Rf8 {[%emt 0:00:52]} 39. Nc3 {[%emt 0:00:42]} Qh7 {[%emt 0:01:52]} 40. Rf1 {[%emt 0:00:00]} Rfe8 {[%emt 0:00:00]} 41. Qd2 {[%emt 0:02:05]} Qf7 {[%emt 0:02:30]} 42. Ree1 {[%emt 0:02:17]} Rf8 {[%emt 0:01:24]} 43. Qd3 {[%emt 0:00:43]} Qe8 {[%emt 0:01:14]} 44. Ne2 {[%emt 0:01:46]} Nf7 {[%emt 0:08:52]} 45. Nd4 {[%emt 0:03:48]} Ng5 {[%emt 0:00:05]} 46. Rh1 {[%emt 0:03:57]} Qg6 {[%emt 0:00:11]} 47. Re2 {[%emt 0:02:40]} Kh7 {[%emt 0:00:05]} 48. Ree1 {[%emt 0:03:55]} Rfe8 {[%emt 0:01:10]} 49. Re2 {[%emt 0:01:36]} Kh6 {[%emt 0:06:23]} 50. Rhe1 {[%emt 0:02:31]} Kh5 {[%emt 0:01:09]} 51. Rh1 {[%emt 0:01:20]} Qg7 {[%emt 0:02:06]} 52. Ree1 {[%emt 0:01:32]} Kg6 {[%emt 0:03:17]} 53. Ne2 {[%emt 0:02:10]} Kh6 {[%emt 0:02:43]} 54. Nc3 {[%emt 0:00:35]} R5e7 {[%emt 0:01:11]} 55. Re2 {[%emt 0:01:14]} Nf7 {[%emt 0:00:04]} 56. Nb1 {[%emt 0:00:34]} Ne5 {[%emt 0:00:24]} 57. Qc3 {[%emt 0:00:38]} Qg6 58. Nd2 {[%emt 0:00:32]} Nd7 {[%emt 0:01:43]} 59. Rd1 {[%emt 0:01:05]} Nc5 {[%emt 0:00:06]} 60. Ree1 {[%emt 0:01:08]} Qh5 {[%emt 0:01:02]} 61. Qc2 {[%emt 0:01:15]} Qe5 {[%emt 0:00:17]} 62. Re2 {[%emt 0:01:31]} Ra8 {[%emt 0:01:19]} 63. Nb1 {[%emt 0:00:33]} Rae8 {[%emt 0:03:47]} 64. Nc3 {[%emt 0:00:36]} Nd7 {[%emt 0:01:11]} 65. Ree1 {[%emt 0:00:50]} Qh5 {[%emt 0:00:33]} 66. Nb1 {[%emt 0:00:35]} Ne5 {[%emt 0:00:34]} 67. Nd2 {[%emt 0:00:18]} Nf7 {[%emt 0:00:02]} 68. Qd3 {[%emt 0:01:22]} Ng5 {[%emt 0:00:06]} 69. Rh1 {[%emt 0:00:23]} Qg6 {[%emt 0:01:32]} 70. Rde1 {[%emt 0:00:28]} Qf6 {[%emt 0:00:03]} 71. Re2 {[%emt 0:00:31]} Qf5 {[%emt 0:00:38]} 72. Ree1 {[%emt 0:00:59]} Qg6 {[%emt 0:00:44]} 73. Re2 {[%emt 0:00:43]} Qg7 {[%emt 0:00:29]} 74. Ree1 {[%emt 0:01:02]} Qb2 {[%emt 0:00:04]} 75. Re2 {[%emt 0:02:41]} Qf6 {[%emt 0:00:50]} 76. Ree1 {[%emt 0:00:19]} c5 {[%emt 0:00:02]} 77. bxc6 {[%emt 0:00:43]} Nf7 {[%emt 0:00:51]} 78. Re2 {[%emt 0:00:15]} Ne5 {[%emt 0:00:12]} 79. Qc3 {[%emt 0:00:11]} Rb8 {[%emt 0:00:37]} 80. Rb1 {[%emt 0:00:17]} Qf8 {[%emt 0:00:57]} 81. Ree1 {[%emt 0:00:51]} Qc8 {[%emt 0:00:21]} 82. Qd4 {[%emt 0:01:38]} Kg6 {[%emt 0:00:29]} 83. Re2 {[%emt 0:00:47]} Nf7 {[%emt 0:00:12]} 84. Ree1 {[%emt 0:00:34]} Ng5 {[%emt 0:00:33]} 85. Rh1 {[%emt 0:00:04]} Ra7 {[%emt 0:01:00]} 86. Rxb6 {[%emt 0:01:15]} Qc7 {[%emt 0:00:30]} 87. Rxb8 {[%emt 0:01:03]} Qxb8 {[%emt 0:00:03]} 88. c5 {[%emt 0:00:42]} dxc5 {[%emt 0:00:04]} 89. Qxc5 {[%emt 0:00:37]} Qb2 {[%emt 0:00:33]} 90. Rd1 {[%emt 0:00:33]} Nxe4 {[%emt 0:00:31]} 91. fxe4 {[%emt 0:00:25]} f3+ {[%emt 0:00:03]} 92. Kxf3 {[%emt 0:00:34]} Rf7+ {[%emt 0:00:16]} 93. Ke2 {[%emt 0:00:30]} Qe5 {[%emt 0:00:32]} 94. Rf1 {[%emt 0:00:34]} Qh5+ {[%emt 0:01:00]} 95. Ke1 {[%emt 0:00:15]} Rxf1+ {[%emt 0:00:10]} 96. Nxf1 Qe5 {[%emt 0:01:47]} 97. c7 {[%emt 0:01:10]} Qxe4+ {[%emt 0:00:30]} 98. Ne3 {[%emt 0:00:10]} Qb1+ {[%emt 0:00:32]} 99. Kd2 {[%emt 0:00:28]} 1-0

[Event "71st RUS-ch Higher League 2018"]
[Site "Yaroslavl"]
[Date "2018.07.04"]
[Round "8"]
[White "Sek, Konstantin"]
[Black "Girya, Olga"]
[Result "1-0"]
[ECO "B10"]
[WhiteElo "2476"]
[BlackElo "2457"]
[Annotator "ChessBase"]
[PlyCount "67"]
[EventDate "2018.06.26"]
[EventType "swiss"]
[EventCountry "RUS"]
[SourceTitle "playchess.com"]
[Source "ChessBase"]
[SourceQuality "1"]
[TimeControl "40/5400+30:1800+30"]

1. e4 {[%emt 0:00:00]} c6 {[%emt 0:00:00]} 2. c4 {[%emt 0:00:00]} d5 {[%emt 0:00:00]} 3. exd5 {[%emt 0:00:09]} cxd5 {[%emt 0:00:00]} 4. cxd5 {[%emt 0:00:25]} Nf6 {[%emt 0:00:00]} 5. Qa4+ {[%emt 0:00:12]} Nbd7 {[%emt 0:00:01]} 6. Nc3 {[%emt 0:00:10]} g6 {[%emt 0:00:49]} 7. Bc4 {[%emt 0:00:20]} Bg7 {[%emt 0:02:35]} 8. Nf3 {[%emt 0:00:16]} a6 {[%emt 0:01:36]} 9. d3 {[%emt 0:02:49]} Rb8 {[%emt 0:00:31]} 10. Bb3 {[%emt 0:05:47]} b5 {[%emt 0:00:38]} 11. Qh4 {[%emt 0:08:15]} Nc5 {[%emt 0:09:34]} 12. O-O {[%emt 0:00:35]} Nxb3 {[%emt 0:09:40]} 13. axb3 {[%emt 0:00:05]} Nxd5 {[%emt 0:07:25]} 14. Bh6 {[%emt 0:02:05]} Bxh6 {[%emt 0:26:59]} 15. Qxh6 {[%emt 0:00:06]} Nxc3 {[%emt 0:03:42]} 16. bxc3 {[%emt 0:00:31]} Qd6 {[%emt 0:07:36]} 17. Ng5 {[%emt 0:03:57]} Bb7 {[%emt 0:01:50]} 18. Rfe1 {[%emt 0:02:11]} Qf6 {[%emt 0:08:04]} 19. Nxh7 {[%emt 0:20:01]} Qc6 {[%emt 0:00:09]} 20. f3 {[%emt 0:00:14]} Qxc3 {[%emt 0:05:32]} 21. Qh4 {[%emt 0:05:32]} g5 {[%emt 0:01:30]} 22. Qxg5 {[%emt 0:01:31]} Qd4+ {[%emt 0:00:03]} 23. Kh1 {[%emt 0:00:56]} e6 {[%emt 0:03:24]} 24. Rac1 {[%emt 0:02:05]} Rc8 {[%emt 0:03:41]} 25. Rxc8+ Bxc8 26. h3 {[%emt 0:07:11]} Qxd3 {[%emt 0:03:46]} 27. Nf6+ {[%emt 0:02:07]} Kf8 {[%emt 0:00:01]} 28. Nh5 {[%emt 0:09:01]} Qd4 {[%emt 0:03:05]} 29. Re4 {[%emt 0:02:24]} Qd1+ {[%emt 0:00:37]} 30. Kh2 {[%emt 0:00:02]} Qd6+ {[%emt 0:00:06]} 31. f4 {[%emt 0:00:10]} Ke8 {[%emt 0:01:30]} 32. Nf6+ {[%emt 0:03:41]} Kf8 {[%emt 0:00:12]} 33. Re3 {[%emt 0:01:08]} Bb7 {[%emt 0:00:44]} 34. Rg3 {[%emt 0:00:12]} 1-0

[Event "71st RUS-ch Higher League 2018"]
[Site "Yaroslavl"]
[Date "2018.07.04"]
[Round "8"]
[White "Gaifullin, Artur"]
[Black "Ovetchkin, Roman"]
[Result "1-0"]
[ECO "E92"]
[WhiteElo "2448"]
[BlackElo "2546"]
[Annotator "ChessBase"]
[PlyCount "81"]
[EventDate "2018.06.26"]
[EventType "swiss"]
[EventCountry "RUS"]
[SourceTitle "playchess.com"]
[Source "ChessBase"]
[SourceQuality "1"]
[TimeControl "40/5400+30:1800+30"]

1. d4 {[%emt 0:00:00]} Nf6 {[%emt 0:00:00]} 2. Nf3 {[%emt 0:00:00]} g6 {[%emt 0:00:32]} 3. c4 {[%emt 0:00:23]} Bg7 {[%emt 0:00:06]} 4. Nc3 {[%emt 0:00:03]} O-O {[%emt 0:00:08]} 5. e4 {[%emt 0:00:28]} d6 {[%emt 0:00:07]} 6. Be2 {[%emt 0:00:07]} e5 {[%emt 0:00:23]} 7. Be3 {[%emt 0:00:06]} exd4 {[%emt 0:02:14]} 8. Nxd4 {[%emt 0:00:04]} Re8 {[%emt 0:00:04]} 9. f3 {[%emt 0:00:04]} c6 {[%emt 0:00:05]} 10. Nc2 {[%emt 0:02:48]} d5 {[%emt 0:07:02]} 11. cxd5 {[%emt 0:10:31]} cxd5 {[%emt 0:00:32]} 12. Bg5 {[%emt 0:00:26]} h6 {[%emt 0:16:21]} 13. Bxf6 {[%emt 0:02:03]} Qxf6 {[%emt 0:05:29]} 14. Nxd5 {[%emt 0:21:59]} Qxb2 {[%emt 0:04:21]} 15. Rb1 {[%emt 0:04:03]} Qxa2 {[%emt 0:03:29]} 16. O-O {[%emt 0:10:47]} Qa5 {[%emt 0:00:31]} 17. Nce3 {[%emt 0:04:36]} Nc6 {[%emt 0:02:56]} 18. Kh1 {[%emt 0:00:32]} Qd8 {[%emt 0:16:03]} 19. Bc4 {[%emt 0:12:37]} Nd4 {[%emt 0:12:52]} 20. Qa4 {[%emt 0:10:32]} Bd7 {[%emt 0:02:19]} 21. Qd1 {[%emt 0:07:59]} b5 {[%emt 0:02:54]} 22. Ba2 {[%emt 0:00:01]} a5 {[%emt 0:02:33]} 23. Ng4 {[%emt 0:03:47]} Bxg4 {[%emt 0:08:14]} 24. fxg4 {[%emt 0:00:00]} Ra7 {[%emt 0:00:07]} 25. Qd3 {[%emt 0:02:47]} Be5 {[%emt 0:01:50]} 26. Qh3 {[%emt 0:00:34]} Qg5 {[%emt 0:00:24]} 27. Rbc1 {[%emt 0:01:16]} Kg7 {[%emt 0:01:27]} 28. Rc5 {[%emt 0:01:09]} Qd2 {[%emt 0:00:49]} 29. g5 {[%emt 0:01:11]} hxg5 {[%emt 0:01:06]} 30. Nc7 {[%emt 0:00:10]} Re7 {[%emt 0:00:48]} 31. Nxb5 {[%emt 0:01:26]} Qe2 {[%emt 0:00:31]} 32. Bc4 {[%emt 0:00:09]} Qxe4 {[%emt 0:02:28]} 33. Nxa7 {[%emt 0:00:49]} Rxa7 {[%emt 0:01:35]} 34. Bd3 {[%emt 0:00:10]} g4 {[%emt 0:02:15]} 35. Bxe4 {[%emt 0:00:06]} gxh3 {[%emt 0:00:02]} 36. Rxe5 {[%emt 0:00:05]} hxg2+ {[%emt 0:00:04]} 37. Kxg2 {[%emt 0:00:16]} a4 {[%emt 0:00:04]} 38. Rd5 {[%emt 0:00:49]} Ne6 {[%emt 0:00:11]} 39. Rb5 {[%emt 0:00:15]} Ra6 {[%emt 0:01:23]} 40. Bd5 {[%emt 0:00:00]} Nd8 {[%emt 0:00:00]} 41. Ba2 {[%emt 0:01:29]} 1-0

[Event "71st RUS-ch Higher League 2018"]
[Site "Yaroslavl"]
[Date "2018.07.04"]
[Round "8"]
[White "Zakaryan, David"]
[Black "Tekeyev, Zaur"]
[Result "1-0"]
[ECO "A01"]
[WhiteElo "2387"]
[BlackElo "2407"]
[Annotator "NA"]
[PlyCount "86"]
[EventDate "2018.06.26"]
[EventType "swiss"]
[EventCountry "RUS"]
[SourceTitle "playchess.com"]
[Source "ChessBase"]
[SourceQuality "1"]
[TimeControl "40/5400+30:1800+30"]

1. b3 {[%emt 0:00:00]} Nf6 {[%emt 0:01:40]} 2. Bb2 {[%emt 0:00:00]} g6 {[%emt 0:00:08]} 3. Bxf6 {[%emt 0:00:00]} exf6 {[%emt 0:00:01]} 4. c4 {[%emt 0:00:16]} d5 {[%emt 0:00:02]} 5. cxd5 {[%emt 0:00:12]} Qxd5 {[%emt 0:00:02]} 6. Nc3 {[%emt 0:00:06]} Qa5 {[%emt 0:01:23]} 7. g3 {[%emt 0:02:25]} Ba3 {[%emt 0:00:32]} 8. Qc2 {[%emt 0:01:12]} Bf5 {[%emt 0:40:45]} 9. e4 {[%emt 0:00:06]} Nc6 {[%emt 0:11:20]} 10. Bb5 {[%emt 0:03:29]} Bd7 {[%emt 0:04:30]} 11. Nge2 {[%emt 0:05:00]} O-O-O {[%emt 0:10:15]} 12. d4 {[%emt 0:03:28]} Nb4 {[%emt 0:01:06]} 13. Bxd7+ {[%emt 0:00:06]} Rxd7 {[%emt 0:00:01]} 14. Qd2 {[%emt 0:00:18]} Bb2 {[%emt 0:02:00]} 15. O-O {[%emt 0:06:27]} Bxa1 {[%emt 0:02:12]} 16. Rxa1 {[%emt 0:00:01]} Nc6 {[%emt 0:02:28]} 17. d5 {[%emt 0:00:43]} Ne5 {[%emt 0:01:18]} 18. Kg2 {[%emt 0:00:12]} h5 {[%emt 0:02:31]} 19. f4 {[%emt 0:01:07]} Nc6 {[%emt 0:00:15]} 20. Qb2 {[%emt 0:07:25]} Ne7 {[%emt 0:02:23]} 21. Rc1 {[%emt 0:03:58]} h4 {[%emt 0:03:16]} 22. Nd4 {[%emt 0:03:19]} Kb8 {[%emt 0:07:07]} 23. Na4 {[%emt 0:03:19]} hxg3 {[%emt 0:02:32]} 24. hxg3 {[%emt 0:00:06]} Rd6 {[%emt 0:01:00]} 25. Nc5 {[%emt 0:06:23]} c6 {[%emt 0:01:06]} 26. b4 {[%emt 0:00:50]} Qb6 {[%emt 0:00:01]} 27. a4 {[%emt 0:03:35]} a5 {[%emt 0:01:18]} 28. Rb1 {[%emt 0:03:14]} cxd5 {[%emt 0:01:53]} 29. e5 {[%emt 0:01:31]} fxe5 {[%emt 0:00:01]} 30. fxe5 {[%emt 0:00:05]} Rdd8 {[%emt 0:00:51]} 31. bxa5 {[%emt 0:00:11]} Qxb2+ {[%emt 0:00:17]} 32. Rxb2 {[%emt 0:00:00]} Ka8 {[%emt 0:00:53]} 33. Rxb7 {[%emt 0:00:16]} Rc8 {[%emt 0:00:31]} 34. Rxe7 {[%emt 0:01:41]} Rxc5 {[%emt 0:00:01]} 35. a6 {[%emt 0:01:27]} Rc4 {[%emt 0:01:03]} 36. Nb5 {[%emt 0:00:10]} Rxa4 {[%emt 0:00:31]} 37. Ra7+ {[%emt 0:00:09]} Kb8 {[%emt 0:00:05]} 38. Rb7+ {[%emt 0:00:02]} Kc8 {[%emt 0:00:08]} 39. Nd6+ {[%emt 0:00:04]} Kd8 {[%emt 0:00:07]} 40. Nxf7+ {[%emt 0:00:00]} Kc8 {[%emt 0:00:00]} 41. Nd6+ {[%emt 0:01:54]} Kd8 {[%emt 0:04:25]} 42. e6 {[%emt 0:01:08]} Ra2+ {[%emt 0:05:07]} 43. Kf3 {[%emt 0:00:05]} Rf8+ {[%emt 0:00:04] Ke4} 1-0

[Event "71st RUS-ch Higher League 2018"]
[Site "Yaroslavl"]
[Date "2018.07.04"]
[Round "8"]
[White "Bykov, Oleg"]
[Black "Moiseenko, Vadim"]
[Result "1-0"]
[ECO "D31"]
[WhiteElo "2375"]
[BlackElo "2517"]
[Annotator "ChessBase"]
[PlyCount "67"]
[EventDate "2018.06.26"]
[EventType "swiss"]
[EventCountry "RUS"]
[SourceTitle "playchess.com"]
[Source "ChessBase"]
[SourceQuality "1"]
[TimeControl "40/5400+30:1800+30"]

1. d4 {[%emt 0:00:00]} d5 {[%emt 0:08:34]} 2. c4 {[%emt 0:00:00]} e6 {[%emt 0:00:08]} 3. Nc3 {[%emt 0:00:00]} h6 {[%emt 0:00:05]} 4. Nf3 {[%emt 0:03:02]} Nf6 {[%emt 0:00:05]} 5. Bf4 {[%emt 0:00:55]} Bd6 {[%emt 0:02:25]} 6. Bxd6 {[%emt 0:03:03]} Qxd6 {[%emt 0:00:11]} 7. e3 {[%emt 0:01:57]} b6 {[%emt 0:01:38]} 8. Rc1 {[%emt 0:01:55]} O-O {[%emt 0:08:42]} 9. cxd5 {[%emt 0:04:20]} Nxd5 {[%emt 0:00:08]} 10. Be2 {[%emt 0:07:07]} Bb7 {[%emt 0:01:58]} 11. Nb5 {[%emt 0:10:44]} Qe7 {[%emt 0:01:19]} 12. O-O {[%emt 0:00:53]} c6 {[%emt 0:05:04]} 13. Nc3 {[%emt 0:07:45]} Nd7 {[%emt 0:01:04]} 14. Nxd5 {[%emt 0:04:51]} exd5 {[%emt 0:00:04]} 15. Qa4 {[%emt 0:00:38]} a5 {[%emt 0:02:34]} 16. Qb3 {[%emt 0:03:45]} Qd6 {[%emt 0:09:57]} 17. Rfd1 {[%emt 0:03:15]} Rfe8 {[%emt 0:01:04]} 18. Bd3 {[%emt 0:00:52]} g6 {[%emt 0:00:08]} 19. h4 {[%emt 0:08:17]} Kg7 {[%emt 0:08:21]} 20. h5 {[%emt 0:02:29]} Re6 {[%emt 0:04:07]} 21. Nh4 {[%emt 0:16:12]} Qe7 {[%emt 0:10:23]} 22. g3 {[%emt 0:00:35]} Ba6 {[%emt 0:00:39]} 23. Bf5 {[%emt 0:02:06]} g5 {[%emt 0:02:01]} 24. Bxe6 {[%emt 0:02:07]} Qxe6 {[%emt 0:00:06]} 25. Ng2 {[%emt 0:00:47]} Be2 {[%emt 0:02:55]} 26. Re1 {[%emt 0:11:55]} Bc4 {[%emt 0:07:57]} 27. Qc2 {[%emt 0:00:51]} Nf6 {[%emt 0:00:12]} 28. b3 {[%emt 0:00:36]} Ba6 {[%emt 0:01:32]} 29. Qxc6 {[%emt 0:01:08]} Qh3 {[%emt 0:00:05]} 30. Qxa8 {[%emt 0:01:46]} Bd3 {[%emt 0:00:02]} 31. f3 {[%emt 0:00:39]} g4 {[%emt 0:00:01]} 32. Qc8 {[%emt 0:00:31]} Qxg3 {[%emt 0:00:16]} 33. Qc7 {[%emt 0:00:19]} Qxf3 {[%emt 0:00:47]} 34. Qf4 {[%emt 0:00:38]} 1-0

[Event "71st RUS-ch Higher League 2018"]
[Site "Yaroslavl"]
[Date "2018.07.04"]
[Round "8"]
[White "Bykov, Egor"]
[Black "Okrugin, Sergey"]
[Result "1-0"]
[ECO "E18"]
[WhiteElo "2373"]
[BlackElo "2334"]
[Annotator "NA"]
[PlyCount "127"]
[EventDate "2018.06.26"]
[EventType "swiss"]
[EventCountry "RUS"]
[SourceTitle "playchess.com"]
[Source "ChessBase"]
[SourceQuality "1"]
[TimeControl "40/5400+30:1800+30"]

1. d4 {[%emt 0:00:00]} Nf6 {[%emt 0:00:06]} 2. c4 {[%emt 0:00:00]} e6 {[%emt 0:00:06]} 3. Nf3 {[%emt 0:00:00]} b6 {[%emt 0:00:04]} 4. g3 {[%emt 0:00:00]} Bb7 {[%emt 0:00:07]} 5. Bg2 {[%emt 0:00:00]} Be7 {[%emt 0:00:08]} 6. O-O {[%emt 0:00:05]} O-O {[%emt 0:00:08]} 7. Nc3 {[%emt 0:00:04]} Ne4 {[%emt 0:00:08]} 8. Bd2 {[%emt 0:00:05]} Bf6 {[%emt 0:00:16]} 9. Rc1 {[%emt 0:04:51]} c5 {[%emt 0:02:03]} 10. d5 {[%emt 0:00:56]} exd5 {[%emt 0:00:48]} 11. cxd5 {[%emt 0:00:20]} Nxd2 {[%emt 0:00:18]} 12. Nxd2 {[%emt 0:00:53]} d6 {[%emt 0:00:17]} 13. Re1 {[%emt 0:06:20]} Re8 {[%emt 0:18:34]} 14. Nde4 {[%emt 0:01:57]} Be7 {[%emt 0:08:23]} 15. f4 {[%emt 0:00:42]} Nd7 {[%emt 0:07:48]} 16. a3 {[%emt 0:03:31]} a6 {[%emt 0:15:53]} 17. b4 {[%emt 0:08:22]} cxb4 {[%emt 0:03:35]} 18. axb4 {[%emt 0:00:04]} Rc8 {[%emt 0:00:32]} 19. Qd3 {[%emt 0:02:55]} b5 {[%emt 0:01:47]} 20. Nd2 {[%emt 0:11:31]} Bf6 {[%emt 0:12:43]} 21. Nce4 {[%emt 0:04:37]} Nb6 {[%emt 0:03:24]} 22. Rxc8 {[%emt 0:08:32]} Bxc8 {[%emt 0:01:48]} 23. Nxf6+ {[%emt 0:01:45]} Qxf6 {[%emt 0:00:16]} 24. e4 {[%emt 0:00:26]} g5 {[%emt 0:06:05]} 25. Rf1 {[%emt 0:07:31]} gxf4 {[%emt 0:01:14]} 26. gxf4 {[%emt 0:02:13]} Kh8 {[%emt 0:01:48]} 27. Kh1 {[%emt 0:12:53]} Rg8 {[%emt 0:01:51]} 28. Nb3 {[%emt 0:09:26]} Qg7 {[%emt 0:03:11]} 29. Qd4 {[%emt 0:00:27]} f6 {[%emt 0:00:56]} 30. Rg1 {[%emt 0:00:33]} Nc4 {[%emt 0:00:23]} 31. Bf1 {[%emt 0:02:02]} Qh6 {[%emt 0:05:49]} 32. Rxg8+ {[%emt 0:03:28]} Kxg8 {[%emt 0:00:02]} 33. Bxc4 {[%emt 0:01:20]} bxc4 {[%emt 0:00:28]} 34. Qxc4 {[%emt 0:00:59]} Bh3 {[%emt 0:01:17]} 35. Qd3 {[%emt 0:05:11]} Kf7 {[%emt 0:00:23]} 36. Nd2 {[%emt 0:03:19]} Qxf4 {[%emt 0:01:59]} 37. Qxh3 {[%emt 0:00:06]} Qxd2 {[%emt 0:00:08]} 38. Qxh7+ {[%emt 0:00:12]} Kf8 {[%emt 0:00:11]} 39. Qh8+ {[%emt 0:00:13]} Kf7 {[%emt 0:00:04]} 40. Qh5+ {[%emt 0:00:00]} Ke7 {[%emt 0:00:00]} 41. Qh7+ {[%emt 0:03:34]} Kf8 {[%emt 0:03:00]} 42. Qg6 {[%emt 0:00:12]} Qxb4 {[%emt 0:12:58]} 43. Qxf6+ {[%emt 0:00:06]} Ke8 {[%emt 0:03:44]} 44. Qe6+ {[%emt 0:00:06]} Kd8 {[%emt 0:00:29]} 45. h4 {[%emt 0:00:32]} Kc7 {[%emt 0:07:17]} 46. h5 {[%emt 0:04:33]} a5 {[%emt 0:06:47]} 47. h6 {[%emt 0:00:55]} a4 {[%emt 0:00:29]} 48. Qe7+ {[%emt 0:03:29]} Kb6 {[%emt 0:00:33]} 49. h7 {[%emt 0:00:41]} Qe1+ {[%emt 0:02:32]} 50. Kg2 {[%emt 0:00:10]} Qe2+ {[%emt 0:00:08]} 51. Kg3 {[%emt 0:00:08]} Qe3+ {[%emt 0:00:13]} 52. Kg4 {[%emt 0:00:21]} Qe2+ {[%emt 0:00:44]} 53. Kg5 {[%emt 0:00:23]} Qg2+ {[%emt 0:00:12]} 54. Kf6 {[%emt 0:01:37]} Qf3+ {[%emt 0:00:15]} 55. Ke6 {[%emt 0:01:36]} Qxe4+ {[%emt 0:00:16]} 56. Kxd6 {[%emt 0:05:00]} Qb4+ {[%emt 0:01:51]} 57. Kd7 {[%emt 0:00:05]} Qb5+ {[%emt 0:00:08]} 58. Ke6 {[%emt 0:00:44]} Qe2+ {[%emt 0:00:11]} 59. Kd6 {[%emt 0:00:39]} Qh2+ {[%emt 0:00:13]} 60. Kd7 {[%emt 0:00:24]} Kb5 {[%emt 0:00:41]} 61. Kc8 {[%emt 0:00:56]} a3 {[%emt 0:01:09]} 62. Qe8+ {[%emt 0:00:40]} Kb6 {[%emt 0:00:09]} 63. Qc6+ {[%emt 0:00:21]} Ka5 {[%emt 0:00:09]} 64. Qc7+ {[%emt 0:00:06]} 1-0